[Event "*** Titled Tuesday Blitz"]
[Site "Chess.com"]
[Date "2021.02.02"]
[Round "10"]
[White "HackingKid98"]
[Black "kikydu96"]
[Result "0-1"]
[WhiteElo "2460"]
[BlackElo "2588"]
[TimeControl "180+1"]
[EndTime "11:59:16 PST"]
[Termination "kikydu96 won by checkmate"]

1. d4 {[%clk 0:03:00.9]} 1... d5 {[%clk 0:00:31.5]} 2. c4 {[%clk 0:02:55.9]}
2... c6 {[%clk 0:00:31.4]} 3. Nf3 {[%clk 0:02:55.7]} 3... Nf6 {[%clk 0:00:30.8]}
4. g3 {[%clk 0:02:55.9]} 4... dxc4 {[%clk 0:00:29.3]} 5. Bg2 {[%clk 0:02:53.9]}
5... b5 {[%clk 0:00:26.9]} 6. a4 {[%clk 0:02:50.9]} 6... Bb7 {[%clk 0:00:26.6]}
7. Ne5 {[%clk 0:02:50.6]} 7... a6 {[%clk 0:00:26.1]} 8. O-O {[%clk 0:02:48.2]}
8... e6 {[%clk 0:00:26.5]} 9. Nc3 {[%clk 0:02:46.6]} 9... Be7 {[%clk 0:00:26.2]}
10. axb5 {[%clk 0:02:46.3]} 10... axb5 {[%clk 0:00:26.4]} 11. Rxa8 {[%clk
0:02:47.2]} 11... Bxa8 {[%clk 0:00:27]} 12. Nxb5 {[%clk 0:02:47.7]} 12... cxb5
{[%clk 0:00:24.9]} 13. Bxa8 {[%clk 0:02:47]} 13... Nd5 {[%clk 0:00:24.3]} 14. e4
{[%clk 0:02:18.8]} 14... Nb6 {[%clk 0:00:20.7]} 15. Bc6+ {[%clk 0:02:09.2]}
15... Nxc6 {[%clk 0:00:21]} 16. Nxc6 {[%clk 0:02:10.1]} 16... Qc7 {[%clk
0:00:21.9]} 17. d5 {[%clk 0:02:06.2]} 17... O-O {[%clk 0:00:19.1]} 18. Nxe7+
{[%clk 0:01:54.4]} 18... Qxe7 {[%clk 0:00:20]} 19. d6 {[%clk 0:01:54.9]} 19...
Qb7 {[%clk 0:00:18.8]} 20. e5 {[%clk 0:01:53.1]} 20... Nd5 {[%clk 0:00:19.1]}
21. Qe2 {[%clk 0:01:49.2]} 21... Rc8 {[%clk 0:00:18.4]} 22. h4 {[%clk 0:01:49]}
22... b4 {[%clk 0:00:17]} 23. h5 {[%clk 0:01:49.1]} 23... h6 {[%clk 0:00:17]}
24. Qg4 {[%clk 0:01:48]} 24... Kh8 {[%clk 0:00:15.3]} 25. Qe4 {[%clk 0:01:45.3]}
25... c3 {[%clk 0:00:14.8]} 26. bxc3 {[%clk 0:01:43.6]} 26... bxc3 {[%clk
0:00:15.7]} 27. g4 {[%clk 0:01:43.4]} 27... Qb4 {[%clk 0:00:12.8]} 28. Qf3
{[%clk 0:01:40.9]} 28... Rc4 {[%clk 0:00:11.3]} 29. Rd1 {[%clk 0:01:18]} 29...
Rxg4+ {[%clk 0:00:11]} 30. Kf1 {[%clk 0:01:18.3]} 30... Qc4+ {[%clk 0:00:10.9]}
31. Qd3 {[%clk 0:01:12.6]} 31... Qa4 {[%clk 0:00:11.1]} 32. d7 {[%clk 0:01:01]}
32... Qxd7 {[%clk 0:00:10.5]} 33. Qxc3 {[%clk 0:01:00.9]} 33... Qb5+ {[%clk
0:00:09.3]} 34. Qd3 {[%clk 0:01:00.7]} 34... Qxd3+ {[%clk 0:00:09.1]} 35. Rxd3
{[%clk 0:01:01.6]} 35... Rh4 {[%clk 0:00:09.6]} 36. Ra3 {[%clk 0:00:58.2]} 36...
Rxh5 {[%clk 0:00:10]} 37. Ra7 {[%clk 0:00:55.7]} 37... Rf5 {[%clk 0:00:09.8]}
38. Bb2 {[%clk 0:00:53.5]} 38... Kh7 {[%clk 0:00:09.9]} 39. Ke2 {[%clk
0:00:53.6]} 39... Nf4+ {[%clk 0:00:09.8]} 40. Ke3 {[%clk 0:00:50.1]} 40... Nd5+
{[%clk 0:00:10.1]} 41. Ke2 {[%clk 0:00:48.8]} 41... h5 {[%clk 0:00:10.7]} 42.
Ra4 {[%clk 0:00:46.3]} 42... g5 {[%clk 0:00:10.9]} 43. f3 {[%clk 0:00:44.2]}
43... h4 {[%clk 0:00:10.8]} 44. Rg4 {[%clk 0:00:42.5]} 44... Kh6 {[%clk
0:00:10]} 45. Bc1 {[%clk 0:00:41.1]} 45... Rxe5+ {[%clk 0:00:10.1]} 46. Kd3
{[%clk 0:00:41.2]} 46... Kh5 {[%clk 0:00:10.4]} 47. Ra4 {[%clk 0:00:39.3]} 47...
Rf5 {[%clk 0:00:10.5]} 48. Ke2 {[%clk 0:00:38.4]} 48... Nf4+ {[%clk 0:00:09.8]}
49. Ke3 {[%clk 0:00:37.6]} 49... Re5+ {[%clk 0:00:10.1]} 50. Kf2 {[%clk
0:00:35.8]} 50... Re2+ {[%clk 0:00:10]} 51. Kf1 {[%clk 0:00:36]} 51... Rc2
{[%clk 0:00:08.4]} 52. Bxf4 {[%clk 0:00:35.1]} 52... gxf4 {[%clk 0:00:09.3]} 53.
Rxf4 {[%clk 0:00:35.5]} 53... f5 {[%clk 0:00:10]} 54. Ra4 {[%clk 0:00:35.2]}
54... Kg5 {[%clk 0:00:10]} 55. Kg1 {[%clk 0:00:33.6]} 55... e5 {[%clk 0:00:10]}
56. Kf1 {[%clk 0:00:31.9]} 56... h3 {[%clk 0:00:08.8]} 57. Kg1 {[%clk
0:00:31.1]} 57... h2+ {[%clk 0:00:08.6]} 58. Kh1 {[%clk 0:00:29.9]} 58... f4
{[%clk 0:00:09.1]} 59. Ra8 {[%clk 0:00:25.2]} 59... Rc1+ {[%clk 0:00:06]} 60.
Kxh2 {[%clk 0:00:24.2]} 60... Rc2+ {[%clk 0:00:05.4]} 61. Kg1 {[%clk 0:00:23.5]}
61... Kh4 {[%clk 0:00:05.2]} 62. Rg8 {[%clk 0:00:23]} 62... Re2 {[%clk 0:00:05]}
63. Kf1 {[%clk 0:00:22.3]} 63... Re3 {[%clk 0:00:03.7]} 64. Kf2 {[%clk
0:00:21.6]} 64... Kh5 {[%clk 0:00:03.6]} 65. Rg7 {[%clk 0:00:18.3]} 65... Kh6
{[%clk 0:00:03.6]} 66. Rg1 {[%clk 0:00:16.5]} 66... Ra3 {[%clk 0:00:03.5]} 67.
Rg4 {[%clk 0:00:14.3]} 67... Ra2+ {[%clk 0:00:03.5]} 68. Kf1 {[%clk 0:00:14.4]}
68... Rb2 {[%clk 0:00:03.5]} 69. Rg8 {[%clk 0:00:12.8]} 69... Ra2 {[%clk
0:00:03.9]} 70. Rg4 {[%clk 0:00:11.4]} 70... Ra5 {[%clk 0:00:04.3]} 71. Rg8
{[%clk 0:00:10.6]} 71... Ra2 {[%clk 0:00:04.8]} 72. Kg1 {[%clk 0:00:09.4]} 72...
Ra6 {[%clk 0:00:05.1]} 73. Kf1 {[%clk 0:00:09.2]} 73... Rg6 {[%clk 0:00:04.8]}
74. Re8 {[%clk 0:00:08]} 74... Rg5 {[%clk 0:00:05.1]} 75. Kf2 {[%clk 0:00:08.5]}
75... Kg6 {[%clk 0:00:05.7]} 76. Rh8 {[%clk 0:00:08.2]} 76... Kf6 {[%clk
0:00:05]} 77. Rf8+ {[%clk 0:00:07.8]} 77... Kg6 {[%clk 0:00:04.9]} 78. Ra8
{[%clk 0:00:08.7]} 78... Rh5 {[%clk 0:00:05.2]} 79. Ra6+ {[%clk 0:00:09.1]}
79... Kf5 {[%clk 0:00:05.6]} 80. Rd6 {[%clk 0:00:08.3]} 80... Rh2+ {[%clk
0:00:05.9]} 81. Kg1 {[%clk 0:00:08.2]} 81... Ra2 {[%clk 0:00:06.8]} 82. Rd8
{[%clk 0:00:07.5]} 82... Ke6 {[%clk 0:00:06.9]} 83. Re8+ {[%clk 0:00:06.4]}
83... Kd5 {[%clk 0:00:06.8]} 84. Rd8+ {[%clk 0:00:04.3]} 84... Kc4 {[%clk
0:00:07.2]} 85. Re8 {[%clk 0:00:05.2]} 85... Kd4 {[%clk 0:00:07.4]} 86. Kf1
{[%clk 0:00:04.1]} 86... Ke3 {[%clk 0:00:07.3]} 87. Rxe5+ {[%clk 0:00:03.1]}
87... Kxf3 {[%clk 0:00:07.8]} 88. Kg1 {[%clk 0:00:03.4]} 88... Ra1+ {[%clk
0:00:08.1]} 89. Kh2 {[%clk 0:00:03.3]} 89... Kf2 {[%clk 0:00:08.6]} 90. Rf5
{[%clk 0:00:01.8]} 90... f3 {[%clk 0:00:08.7]} 91. Ra5 {[%clk 0:00:02.6]} 91...
Re1 {[%clk 0:00:09.1]} 92. Ra2+ {[%clk 0:00:01.3]} 92... Re2 {[%clk 0:00:09.4]}
93. Kh3 {[%clk 0:00:02.2]} 93... Rxa2 {[%clk 0:00:09]} 94. Kg4 {[%clk
0:00:02.7]} 94... Kg2 {[%clk 0:00:09.1]} 95. Kh4 {[%clk 0:00:01.9]} 95... f2
{[%clk 0:00:10]} 96. Kg5 {[%clk 0:00:02]} 96... f1=Q {[%clk 0:00:10.3]} 97. Kh4
{[%clk 0:00:02.9]} 97... Qf4+ {[%clk 0:00:10.1]} 98. Kh5 {[%clk 0:00:01.5]}
98... Ra5+ {[%clk 0:00:10.9]} 99. Kg6 {[%clk 0:00:01.8]} 99... Rg5+ {[%clk
0:00:11.8]} 100. Kh7 {[%clk 0:00:00.9]} 100... Qh4# {[%clk 0:00:12.7]} 0-1

[Event "*** Titled Tuesday Blitz"]
[Site "Chess.com"]
[Date "2021.02.02"]
[Round "11"]
[White "Natalya_Buksa"]
[Black "cassoulet"]
[Result "1-0"]
[WhiteElo "2587"]
[BlackElo "2728"]
[TimeControl "180+1"]
[EndTime "12:00:39 PST"]
[Termination "Natalya_Buksa won by resignation"]

1. d4 {[%clk 0:03:00.9]} 1... d5 {[%clk 0:02:59.2]} 2. Nc3 {[%clk 0:03:01.4]}
2... Nf6 {[%clk 0:02:58.7]} 3. Bf4 {[%clk 0:03:01.9]} 3... c5 {[%clk 0:02:58.4]}
4. e3 {[%clk 0:03:01.9]} 4... Nc6 {[%clk 0:02:58.6]} 5. Nf3 {[%clk 0:03:00.1]}
5... e6 {[%clk 0:02:58.5]} 6. Nb5 {[%clk 0:02:59.8]} 6... Nh5 {[%clk 0:02:39.7]}
7. Nc7+ {[%clk 0:02:54.9]} 7... Kd7 {[%clk 0:02:39.8]} 8. Nxa8 {[%clk
0:02:51.9]} 8... Nxf4 {[%clk 0:02:39.8]} 9. exf4 {[%clk 0:02:52.8]} 9... b6
{[%clk 0:02:36.5]} 10. Bb5 {[%clk 0:02:49.3]} 10... Bb7 {[%clk 0:02:36.6]} 11.
Ne5+ {[%clk 0:02:48.5]} 11... Kd6 {[%clk 0:02:37]} 12. Nxf7+ {[%clk 0:02:48.7]}
1-0

[Event "*** Titled Tuesday Blitz"]
[Site "Chess.com"]
[Date "2021.02.02"]
[Round "11"]
[White "paulrusan"]
[Black "cukin84"]
[Result "0-1"]
[WhiteElo "2248"]
[BlackElo "2156"]
[TimeControl "180+1"]
[EndTime "12:01:44 PST"]
[Termination "cukin84 won by resignation"]

1. e4 {[%clk 0:03:00.9]} 1... c6 {[%clk 0:02:59.7]} 2. d4 {[%clk 0:03:00.5]}
2... d5 {[%clk 0:02:59.8]} 3. f3 {[%clk 0:03:00.5]} 3... Nf6 {[%clk 0:02:54.7]}
4. Nc3 {[%clk 0:02:59.2]} 4... dxe4 {[%clk 0:02:51.6]} 5. fxe4 {[%clk
0:02:58.8]} 5... Bg4 {[%clk 0:02:51.6]} 6. Qd3 {[%clk 0:02:51.4]} 6... e6 {[%clk
0:02:51.6]} 7. e5 {[%clk 0:02:50.3]} 7... Nd5 {[%clk 0:02:47.1]} 8. a3 {[%clk
0:02:42.9]} 8... Bf5 {[%clk 0:02:42]} 9. Ne4 {[%clk 0:02:39.7]} 9... Qh4+ {[%clk
0:02:36]} 10. g3 {[%clk 0:02:28.7]} 10... Qxe4+ {[%clk 0:02:35.4]} 11. Kf2
{[%clk 0:02:24.2]} 11... Qxh1 {[%clk 0:02:31.8]} 12. Bg2 {[%clk 0:02:23.9]}
12... Qxg2+ {[%clk 0:02:24.7]} 13. Kxg2 {[%clk 0:02:23.7]} 13... Bxd3 {[%clk
0:02:24.8]} 14. cxd3 {[%clk 0:02:24.3]} 14... c5 {[%clk 0:02:22.3]} 15. dxc5
{[%clk 0:02:23.3]} 15... Bxc5 {[%clk 0:02:21.6]} 16. Nf3 {[%clk 0:02:23.7]}
16... O-O {[%clk 0:02:19.9]} 17. d4 {[%clk 0:02:23.5]} 17... Be7 {[%clk
0:02:17.5]} 18. Bd2 {[%clk 0:02:22.8]} 18... Nc6 {[%clk 0:02:17.1]} 0-1

[Event "*** Titled Tuesday Blitz"]
[Site "Chess.com"]
[Date "2021.02.02"]
[Round "11"]
[White "horripile"]
[Black "Shepherdboy"]
[Result "0-1"]
[WhiteElo "2711"]
[BlackElo "2478"]
[TimeControl "180+1"]
[EndTime "12:01:46 PST"]
[Termination "Shepherdboy won by resignation"]

1. e4 {[%clk 0:03:00.9]} 1... c6 {[%clk 0:02:59]} 2. d4 {[%clk 0:03:00.1]} 2...
d5 {[%clk 0:02:58.4]} 3. Nd2 {[%clk 0:03:00.4]} 3... dxe4 {[%clk 0:02:56.6]} 4.
Nxe4 {[%clk 0:03:00.4]} 4... Bf5 {[%clk 0:02:55.5]} 5. Ng3 {[%clk 0:02:57.8]}
5... Bg6 {[%clk 0:02:55.6]} 6. Nf3 {[%clk 0:02:58.7]} 6... Nd7 {[%clk
0:02:53.6]} 7. h4 {[%clk 0:02:58.3]} 7... h6 {[%clk 0:02:51.6]} 8. h5 {[%clk
0:02:58.6]} 8... Bh7 {[%clk 0:02:51.2]} 9. Bd3 {[%clk 0:02:58.6]} 9... Bxd3
{[%clk 0:02:48.5]} 10. Qxd3 {[%clk 0:02:59.5]} 10... e6 {[%clk 0:02:47.4]} 11.
Bd2 {[%clk 0:02:58.5]} 11... Ngf6 {[%clk 0:02:44.3]} 12. O-O-O {[%clk
0:02:58.5]} 12... Qc7 {[%clk 0:02:42.8]} 13. Kb1 {[%clk 0:02:57.2]} 13... O-O-O
{[%clk 0:02:34.5]} 14. Ne4 {[%clk 0:02:53.4]} 14... c5 {[%clk 0:02:31.7]} 15.
Nxf6 {[%clk 0:02:33.3]} 15... Nxf6 {[%clk 0:02:32.6]} 16. Rh4 {[%clk 0:02:20.5]}
16... cxd4 {[%clk 0:02:32.2]} 17. Rxd4 {[%clk 0:02:18.8]} 17... Bc5 {[%clk
0:02:29]} 18. Rxd8+ {[%clk 0:02:10.2]} 18... Rxd8 {[%clk 0:02:29.9]} 19. Qe2
{[%clk 0:02:09.2]} 19... Nxh5 {[%clk 0:02:29.4]} 0-1

[Event "*** Titled Tuesday Blitz"]
[Site "Chess.com"]
[Date "2021.02.02"]
[Round "11"]
[White "NiranjanNavalgund"]
[Black "serhanberat_ozdemir"]
[Result "1-0"]
[WhiteElo "2533"]
[BlackElo "2446"]
[TimeControl "180+1"]
[EndTime "12:02:09 PST"]
[Termination "NiranjanNavalgund won by resignation"]

1. e4 {[%clk 0:03:00.9]} 1... c5 {[%clk 0:02:59.5]} 2. d4 {[%clk 0:03:00.1]}
2... cxd4 {[%clk 0:02:59.2]} 3. c3 {[%clk 0:02:59.9]} 3... d5 {[%clk 0:02:57.8]}
4. exd5 {[%clk 0:02:59.4]} 4... Qxd5 {[%clk 0:02:58.7]} 5. Nf3 {[%clk
0:02:59.1]} 5... Nc6 {[%clk 0:02:52.9]} 6. cxd4 {[%clk 0:02:59.1]} 6... Bg4
{[%clk 0:02:42.4]} 7. Be2 {[%clk 0:02:54.1]} 7... e6 {[%clk 0:02:42.6]} 8. Nc3
{[%clk 0:02:53]} 8... Qa5 {[%clk 0:02:34.7]} 9. O-O {[%clk 0:02:49.9]} 9... Nf6
{[%clk 0:02:34.8]} 10. Qb3 {[%clk 0:02:46.4]} 10... Qc7 {[%clk 0:02:08.8]} 11.
Bf4 {[%clk 0:02:38.6]} 11... Qxf4 {[%clk 0:01:52.4]} 12. Qxb7 {[%clk 0:02:37.7]}
12... Rb8 {[%clk 0:01:42.1]} 13. Qxc6+ {[%clk 0:02:36.3]} 13... Nd7 {[%clk
0:01:42.8]} 14. Ne5 {[%clk 0:02:33.9]} 1-0

[Event "*** Titled Tuesday Blitz"]
[Site "Chess.com"]
[Date "2021.02.02"]
[Round "11"]
[White "Skat2704"]
[Black "ClauSanLuis"]
[Result "1-0"]
[WhiteElo "2523"]
[BlackElo "2366"]
[TimeControl "180+1"]
[EndTime "12:02:20 PST"]
[Termination "Skat2704 won by resignation"]

1. d4 {[%clk 0:03:00.9]} 1... Nf6 {[%clk 0:02:57.5]} 2. c4 {[%clk 0:02:59.3]}
2... e6 {[%clk 0:02:55]} 3. Nf3 {[%clk 0:02:57.9]} 3... c5 {[%clk 0:02:54.9]} 4.
d5 {[%clk 0:02:56.8]} 4... b5 {[%clk 0:02:55]} 5. dxe6 {[%clk 0:02:55.3]} 5...
fxe6 {[%clk 0:02:54.5]} 6. cxb5 {[%clk 0:02:55.3]} 6... d5 {[%clk 0:02:54.7]} 7.
Nc3 {[%clk 0:02:53.7]} 7... Bd6 {[%clk 0:02:45.1]} 8. e4 {[%clk 0:02:48.9]} 8...
dxe4 {[%clk 0:02:30.5]} 9. Ng5 {[%clk 0:02:47.1]} 9... Bb7 {[%clk 0:02:29.6]}
10. Nxe6 {[%clk 0:02:45.3]} 10... Qe7 {[%clk 0:02:27.5]} 11. Nxg7+ {[%clk
0:02:44]} 11... Qxg7 {[%clk 0:02:25.2]} 12. Qxd6 {[%clk 0:02:41.8]} 12... Nbd7
{[%clk 0:02:25.9]} 13. Be3 {[%clk 0:02:37.2]} 13... Qe7 {[%clk 0:02:23.2]} 14.
Qxe7+ {[%clk 0:02:30.2]} 14... Kxe7 {[%clk 0:02:22.8]} 15. Bc4 {[%clk
0:02:26.3]} 15... Rac8 {[%clk 0:02:14.3]} 16. O-O {[%clk 0:02:22.9]} 16... Ne5
{[%clk 0:02:14.8]} 17. b3 {[%clk 0:02:20.9]} 17... Nxc4 {[%clk 0:02:13.2]} 18.
bxc4 {[%clk 0:02:19.9]} 18... Rhd8 {[%clk 0:02:13.1]} 19. Na4 {[%clk 0:02:16.5]}
19... Nd7 {[%clk 0:02:09.8]} 20. Rfd1 {[%clk 0:02:12.2]} 20... Rc7 {[%clk
0:02:05.7]} 21. Bg5+ {[%clk 0:02:09.4]} 1-0

[Event "*** Titled Tuesday Blitz"]
[Site "Chess.com"]
[Date "2021.02.02"]
[Round "11"]
[White "ridnani2021"]
[Black "TurboSteen"]
[Result "1-0"]
[WhiteElo "2139"]
[BlackElo "2025"]
[TimeControl "180+1"]
[EndTime "12:02:31 PST"]
[Termination "ridnani2021 won by resignation"]

1. e4 {[%clk 0:03:00.9]} 1... e6 {[%clk 0:02:07.4]} 2. d4 {[%clk 0:02:58.9]}
2... d5 {[%clk 0:02:07.6]} 3. Nd2 {[%clk 0:02:59.4]} 3... Nc6 {[%clk 0:02:05.7]}
4. exd5 {[%clk 0:02:57.2]} 4... exd5 {[%clk 0:02:04.3]} 5. c3 {[%clk 0:02:57.2]}
5... Nf6 {[%clk 0:02:03.2]} 6. Bd3 {[%clk 0:02:56.5]} 6... Bd6 {[%clk
0:02:02.2]} 7. Ne2 {[%clk 0:02:55.9]} 7... O-O {[%clk 0:02:01.9]} 8. Nf3 {[%clk
0:02:56]} 8... Bg4 {[%clk 0:01:59.6]} 9. Ng3 {[%clk 0:02:52.5]} 9... Re8+ {[%clk
0:01:57.4]} 10. Be3 {[%clk 0:02:52.4]} 10... Ne4 {[%clk 0:01:55.6]} 11. Qc2
{[%clk 0:02:47.7]} 11... Nxg3 {[%clk 0:01:36.4]} 12. hxg3 {[%clk 0:02:46.9]}
12... Bxg3 {[%clk 0:01:34.1]} 13. O-O-O {[%clk 0:02:46.6]} 13... Bd6 {[%clk
0:01:26.6]} 14. Bxh7+ {[%clk 0:02:45.7]} 14... Kf8 {[%clk 0:01:25.1]} 15. Bf5
{[%clk 0:02:43.6]} 15... Bxf5 {[%clk 0:01:22.7]} 16. Qxf5 {[%clk 0:02:42.5]}
16... Qf6 {[%clk 0:01:22.8]} 17. Rh8+ {[%clk 0:02:40.4]} 17... Ke7 {[%clk
0:01:21.1]} 18. Bg5 {[%clk 0:02:40.9]} 18... Rxh8 {[%clk 0:01:18.9]} 19. Re1+
{[%clk 0:02:40.1]} 19... Kf8 {[%clk 0:01:17.7]} 20. Bxf6 {[%clk 0:02:39.9]}
20... gxf6 {[%clk 0:01:16.6]} 21. Qxf6 {[%clk 0:02:40.1]} 1-0

[Event "*** Titled Tuesday Blitz"]
[Site "Chess.com"]
[Date "2021.02.02"]
[Round "11"]
[White "Yaryi_sergey"]
[Black "andrzej"]
[Result "1-0"]
[WhiteElo "2465"]
[BlackElo "2304"]
[TimeControl "180+1"]
[EndTime "12:02:56 PST"]
[Termination "Yaryi_sergey won by resignation"]

1. Nf3 {[%clk 0:03:00.9]} 1... c5 {[%clk 0:02:59.3]} 2. g3 {[%clk 0:02:59.4]}
2... g6 {[%clk 0:02:57.7]} 3. h4 {[%clk 0:02:58.8]} 3... Bg7 {[%clk 0:02:58.3]}
4. h5 {[%clk 0:02:58.6]} 4... Nc6 {[%clk 0:02:43.8]} 5. d3 {[%clk 0:02:57.5]}
5... d6 {[%clk 0:02:41.2]} 6. c4 {[%clk 0:02:55.5]} 6... e5 {[%clk 0:02:40.8]}
7. Nc3 {[%clk 0:02:54.3]} 7... Nge7 {[%clk 0:02:39.8]} 8. hxg6 {[%clk
0:02:53.3]} 8... hxg6 {[%clk 0:02:39.4]} 9. Rxh8+ {[%clk 0:02:52.3]} 9... Bxh8
{[%clk 0:02:40.3]} 10. Bg2 {[%clk 0:02:47.5]} 10... Bg7 {[%clk 0:02:33.1]} 11.
a3 {[%clk 0:02:45.3]} 11... Bg4 {[%clk 0:02:31.4]} 12. Bd2 {[%clk 0:02:41.1]}
12... Bxf3 {[%clk 0:02:25.4]} 13. Bxf3 {[%clk 0:02:40]} 13... Nd4 {[%clk
0:02:26]} 14. e3 {[%clk 0:02:39.5]} 14... Nxf3+ {[%clk 0:02:22.6]} 15. Qxf3
{[%clk 0:02:39.2]} 15... Qb6 {[%clk 0:02:22.6]} 16. O-O-O {[%clk 0:02:37.8]}
16... Qb3 {[%clk 0:02:05.1]} 17. Rh1 {[%clk 0:02:31.7]} 17... b5 {[%clk
0:01:53.7]} 18. Qxa8+ {[%clk 0:02:29]} 18... Kd7 {[%clk 0:01:51.5]} 19. Qxa7+
{[%clk 0:02:22.9]} 19... Ke6 {[%clk 0:01:51.4]} 20. cxb5 {[%clk 0:02:10.3]}
20... e4 {[%clk 0:01:51.3]} 21. Qb7 {[%clk 0:02:07.2]} 21... exd3 {[%clk
0:01:47.7]} 22. Qe4+ {[%clk 0:02:05.3]} 22... Kd7 {[%clk 0:01:45.8]} 23. Qxd3
{[%clk 0:02:03.8]} 23... c4 {[%clk 0:01:43.7]} 24. Qc2 {[%clk 0:02:02.8]} 1-0

[Event "*** Titled Tuesday Blitz"]
[Site "Chess.com"]
[Date "2021.02.02"]
[Round "11"]
[White "marvinguevara"]
[Black "JQuiroga18"]
[Result "1-0"]
[WhiteElo "2170"]
[BlackElo "2400"]
[TimeControl "180+1"]
[EndTime "12:03:08 PST"]
[Termination "marvinguevara won by resignation"]

1. e4 {[%clk 0:03:00.9]} 1... e5 {[%clk 0:02:58.1]} 2. Nf3 {[%clk 0:02:59.7]}
2... Nc6 {[%clk 0:02:57.8]} 3. Bc4 {[%clk 0:03:00]} 3... Nf6 {[%clk 0:02:57.4]}
4. O-O {[%clk 0:02:59.6]} 4... Bc5 {[%clk 0:02:57.1]} 5. d4 {[%clk 0:02:58.6]}
5... Bxd4 {[%clk 0:02:54.4]} 6. Nxd4 {[%clk 0:02:58.4]} 6... Nxd4 {[%clk
0:02:54.3]} 7. Bg5 {[%clk 0:02:57.4]} 7... h6 {[%clk 0:02:53]} 8. Bh4 {[%clk
0:02:54.3]} 8... g5 {[%clk 0:02:51.1]} 9. f4 {[%clk 0:02:53]} 9... d6 {[%clk
0:02:47.8]} 10. fxg5 {[%clk 0:02:48.1]} 10... d5 {[%clk 0:02:38.8]} 11. exd5
{[%clk 0:02:26.6]} 11... Nxd5 {[%clk 0:02:38.2]} 12. Qh5 {[%clk 0:02:18.7]}
12... Nf5 {[%clk 0:02:22.7]} 13. g6 {[%clk 0:01:59.4]} 13... Qxh4 {[%clk
0:02:18.8]} 14. gxf7+ {[%clk 0:01:58.3]} 14... Kf8 {[%clk 0:02:18.1]} 15. Qxh4
{[%clk 0:01:53.9]} 15... Nxh4 {[%clk 0:02:17.7]} 16. Bxd5 {[%clk 0:01:53.7]}
16... c6 {[%clk 0:02:16.5]} 17. Be4 {[%clk 0:01:44.9]} 17... h5 {[%clk
0:02:09.8]} 18. g3 {[%clk 0:01:40.1]} 18... Bh3 {[%clk 0:02:09.1]} 19. Rf2
{[%clk 0:01:35.3]} 19... Rd8 {[%clk 0:02:03.2]} 20. Nc3 {[%clk 0:01:32.5]} 1-0

[Event "*** Titled Tuesday Blitz"]
[Site "Chess.com"]
[Date "2021.02.02"]
[Round "11"]
[White "MarceloPlaya"]
[Black "Papullon"]
[Result "0-1"]
[WhiteElo "2243"]
[BlackElo "2148"]
[TimeControl "180+1"]
[EndTime "12:03:38 PST"]
[Termination "Papullon won by resignation"]

1. e4 {[%clk 0:03:00.9]} 1... c5 {[%clk 0:02:59.9]} 2. Nf3 {[%clk 0:03:00]} 2...
e6 {[%clk 0:02:59.8]} 3. d4 {[%clk 0:02:59.8]} 3... cxd4 {[%clk 0:02:59.9]} 4.
Nxd4 {[%clk 0:02:59.6]} 4... Nf6 {[%clk 0:03:00]} 5. Nc3 {[%clk 0:02:59.6]} 5...
Nc6 {[%clk 0:03:00.1]} 6. Be3 {[%clk 0:02:58.9]} 6... Bb4 {[%clk 0:02:59]} 7. f3
{[%clk 0:02:57.7]} 7... d5 {[%clk 0:02:57.7]} 8. Nxc6 {[%clk 0:02:52.8]} 8...
bxc6 {[%clk 0:02:57.2]} 9. exd5 {[%clk 0:02:49.6]} 9... Nxd5 {[%clk 0:02:53.3]}
10. Bd2 {[%clk 0:02:42.2]} 10... Nxc3 {[%clk 0:02:51.7]} 11. Bxc3 {[%clk
0:02:41.1]} 11... Bxc3+ {[%clk 0:02:51.2]} 12. bxc3 {[%clk 0:02:39.3]} 12... Qa5
{[%clk 0:02:40.7]} 13. Qd6 {[%clk 0:02:21.3]} 13... Qxc3+ {[%clk 0:02:36]} 14.
Kf2 {[%clk 0:02:20]} 14... Qxc2+ {[%clk 0:02:22.6]} 15. Be2 {[%clk 0:02:17.7]}
15... Ba6 {[%clk 0:02:19.6]} 16. Rac1 {[%clk 0:02:04.3]} 16... Qxe2+ {[%clk
0:02:17.1]} 17. Kg3 {[%clk 0:02:03.4]} 17... Qb5 {[%clk 0:01:50]} 18. Rhd1
{[%clk 0:01:56]} 18... Qb8 {[%clk 0:01:48.7]} 19. Rxc6 {[%clk 0:01:47.3]} 19...
Qxd6+ {[%clk 0:01:46]} 20. Rdxd6 {[%clk 0:01:46.4]} 20... Bb5 {[%clk 0:01:38.4]}
21. Rc5 {[%clk 0:01:39.7]} 21... a6 {[%clk 0:01:36.5]} 22. a4 {[%clk 0:01:34.7]}
22... Bxa4 {[%clk 0:01:34.4]} 23. Rxa6 {[%clk 0:01:33.8]} 23... Rxa6 {[%clk
0:01:32.5]} 24. Rc8+ {[%clk 0:01:33.4]} 24... Ke7 {[%clk 0:01:32.4]} 25. Rxh8
{[%clk 0:01:32.8]} 25... h6 {[%clk 0:01:32.2]} 0-1

[Event "*** Titled Tuesday Blitz"]
[Site "Chess.com"]
[Date "2021.02.02"]
[Round "11"]
[White "Sokoloco"]
[Black "Tenamu"]
[Result "1-0"]
[WhiteElo "2478"]
[BlackElo "2403"]
[TimeControl "180+1"]
[EndTime "12:03:50 PST"]
[Termination "Sokoloco won by resignation"]

1. b3 {[%clk 0:02:55.7]} 1... Nf6 {[%clk 0:02:58]} 2. Bb2 {[%clk 0:02:55]} 2...
g6 {[%clk 0:02:58.5]} 3. Bxf6 {[%clk 0:02:53.6]} 3... exf6 {[%clk 0:02:59.4]} 4.
c4 {[%clk 0:02:54.1]} 4... Bg7 {[%clk 0:02:59.7]} 5. Nc3 {[%clk 0:02:54.7]} 5...
O-O {[%clk 0:02:59]} 6. Nf3 {[%clk 0:02:55]} 6... f5 {[%clk 0:02:57.9]} 7. d4
{[%clk 0:02:55.1]} 7... c5 {[%clk 0:02:57.5]} 8. e3 {[%clk 0:02:53.6]} 8... f4
{[%clk 0:02:56.1]} 9. Be2 {[%clk 0:02:38.7]} 9... fxe3 {[%clk 0:02:55.9]} 10.
fxe3 {[%clk 0:02:39.6]} 10... Re8 {[%clk 0:02:56.2]} 11. O-O {[%clk 0:02:37.2]}
11... Rxe3 {[%clk 0:02:55.3]} 12. Nd5 {[%clk 0:02:37.7]} 12... Re8 {[%clk
0:02:54.3]} 13. dxc5 {[%clk 0:02:34.7]} 13... Nc6 {[%clk 0:02:47.5]} 14. Rc1
{[%clk 0:02:21.5]} 14... d6 {[%clk 0:02:46.6]} 15. cxd6 {[%clk 0:02:18.3]} 15...
Qxd6 {[%clk 0:02:47.5]} 16. Kh1 {[%clk 0:02:17.5]} 16... Bf5 {[%clk 0:02:40.7]}
17. Bd3 {[%clk 0:02:15.4]} 17... Bxd3 {[%clk 0:02:34.4]} 18. Qxd3 {[%clk
0:02:16.3]} 18... Rad8 {[%clk 0:02:34.7]} 19. Rcd1 {[%clk 0:02:14.9]} 19... a5
{[%clk 0:02:15.3]} 20. Ng5 {[%clk 0:02:05.8]} 20... f5 {[%clk 0:02:11.6]} 21.
Qh3 {[%clk 0:01:49.1]} 21... h6 {[%clk 0:02:08.3]} 22. Nf3 {[%clk 0:01:49.1]}
22... Kh7 {[%clk 0:02:00]} 23. Qh4 {[%clk 0:01:37.3]} 23... Re4 {[%clk
0:01:55.2]} 24. Ng5+ {[%clk 0:01:36]} 24... Kg8 {[%clk 0:01:55]} 25. Nxe4 {[%clk
0:01:35.6]} 25... fxe4 {[%clk 0:01:55.9]} 26. Ne7+ {[%clk 0:01:20.3]} 26... Qxe7
{[%clk 0:01:47.7]} 27. Qxe7 {[%clk 0:01:16.9]} 27... Rxd1 {[%clk 0:01:48.6]} 28.
Qe6+ {[%clk 0:01:10.3]} 1-0